Cogmind - Beta 11.1 @@@ ROGUE MODE // 2022.10.13 @ 18:29:51 Player: arcadio Result: Destroyed by DAS Turret with DAS Cannon Performance ------------- Evolutions (0) 0 Regions Visited (3) 600 Robots Destroyed (14) 70 Value Destroyed (261) 261 Prototype IDs (3) 60 Alien Tech Used (0) 0 Bonus (0) 0 TOTAL SCORE: 991 Bonus ------- None Cogmind --------- Core Integrity 0/250 Matter 285/300 Energy 250/250 System Corruption 4% Temperature Cool (0) Movement Rolling (100) Location -10/Exiles Parts ------- > --- POWER (1) -------- Ion Engine > --- PROPULSION (2) --- Compact Wheel Compact Wheel > --- UTILITY (2) ------ Large Storage Unit Signal Interpreter > --- WEAPON (2) ------- High-powered Shotgun > --- INVENTORY (15) --- Light Ion Engine Light Deuterium Engine Aluminum Leg Compact Wheel Medium Storage Unit ECM Suite Core Shielding Propulsion Shielding Bomb Drone Bay Medium Laser Grenade Launcher Grenade Launcher Missile Launcher Datajack Peak State ------------ > --- POWER ------------ Light Deuterium Engine > --- PROPULSION ------- Compact Wheel Compact Wheel > --- UTILITY ---------- Large Storage Unit Signal Interpreter > --- WEAPON ----------- Medium Laser High-powered Shotgun > --- INVENTORY -------- Ion Engine Light Ion Engine Light Ion Engine Aluminum Leg Aluminum Leg Compact Wheel Medium Storage Unit ECM Suite Core Shielding Propulsion Shielding Medium Laser Grenade Launcher Grenade Launcher Missile Launcher Datajack [Rating: 12] Favorites ----------- Power Light Ion Engine Engine Light Ion Engine Propulsion Compact Wheel Wheel Compact Wheel Utility Signal Interpreter Device ECM Suite Storage Large Storage Unit Processor Signal Interpreter Weapon Medium Laser Energy Gun Medium Laser Ballistic Gun High-powered Shotgun Launcher Grenade Launcher Build | -11 -10 -10 -10 ------- Run | Scr Mat Min Exi Slots Evolved . | . . . . Power . | . . . . Propulsion . | . . . . Utility . | . . . . Weapon . | . . . . Parts Attached 17 | 6 4 7 . Power 4 | 1 1 2 . Engine 4 | 1 1 2 . Core . | . . . . Reactor . | . . . . Propulsion 3 | 2 . 1 . Treads . | . . . . Leg . | . . . . Wheel 3 | 2 . 1 . Hover . | . . . . Flight . | . . . . Utility 4 | 1 3 . . Device 1 | . 1 . . Storage 2 | 1 1 . . Processor 1 | . 1 . . Hackware . | . . . . Protection . | . . . . Artifact . | . . . . Weapon 6 | 2 . 4 . Energy Gun 4 | 2 . 2 . Energy Cannon . | . . . . Ballistic Gun 1 | . . 1 . Ballistic Cannon . | . . . . Launcher 1 | . . 1 . Special Weapon . | . . . . Impact Weapon . | . . . . Slashing Weapon . | . . . . Piercing Weapon . | . . . . Special Melee Weapon . | . . . . Unidentified Prototypes . | . . . . Parts Lost 2 | . . 1 1 Power . | . . . . Propulsion . | . . . . Utility . | . . . . Weapon 2 | . . 1 1 Highest Loss Streak 1 | . . 1 1 To Critical Strikes . | . . . . Average Slot Usage (%) 99 | . 98 99 100 Engine 14 | . 14 14 14 Wheel 28 | . 28 28 28 Device 3 | . 6 . . Storage 14 | . 14 14 14 Processor 10 | . 6 14 14 Energy Gun 22 | . 28 19 14 Ballistic Gun 5 | . . 7 14 Naked Turns . | . . . . Heaviest Build 30 | 12 27 30 30 Greatest Support 32 | 32 32 32 32 Greatest Overweight (x) . | . . . . Average Overweight (x) . | . . . . Largest Inventory Capacity 15 | 8 15 15 15 Average Capacity 12 | 6 10 15 15 Most Carried 15 | 6 12 15 15 Average Carried 11 | 1 8 13 15 Final Capacity 15 | 8 15 15 15 Final Carried 15 | 6 12 15 15 Class Distribution -------------------- 100% | Mutant Dominant Class ---------------- Mutant | -10/Materials Mutant | -10/Mines Mutant | -10/Exiles Resources | -11 -10 -10 -10 ----------- Run | Scr Mat Min Exi Matter Collected 392 | 254 53 85 . Remotely . | . . . . Salvage Created 363 | . 343 20 . Parts 35 | . 28 7 . Haulers Intercepted 1 | . 1 . . Recyclers Shooed . | . . . . Parts Field Recycled . | . . . . Retrieved Matter . | . . . . Parts Self-Destructed . | . . . . Prevented . | . . . . Kills | -11 -10 -10 -10 ------- Run | Scr Mat Min Exi Combat Hostiles Destroyed 9 | . 6 3 . Guns 6 | . 6 . . AOE 3 | . . 3 . Classes Destroyed 5 | . 5 . . Hauler 1 | . 1 . . Operator 1 | . 1 . . Watcher 3 | . 3 . . Swarmer 6 | . 3 3 . Grunt 3 | . 3 . . Best Kill Streak 3 | . 3 3 . Combat Bots Only 3 | . 3 3 . Max Kills in Single Turn 3 | . 1 3 . Gunslinging . | . . . . Exploded 3 | . . 3 . Melee . | . . . . Uniques/NPCs Destroyed . | . . . . Combat | -11 -10 -10 -10 -------- Run | Scr Mat Min Exi Damage Taken 569 | . 145 65 359 Core 284 | . 45 16 223 Absorbed by Shields . | . . . . Core Remaining (%) 100 | 100 . . . Volleys Fired 25 | . 24 1 . Largest 2 | . 2 2 . Hottest 90 | . 90 70 . Shots Fired 51 | . 48 2 1 Gun 50 | . 48 1 1 Cannon . | . . . . Launcher 1 | . . 1 . Special . | . . . . Kinetic 1 | . . . 1 Thermal 24 | . 24 . . Explosive 1 | . . 1 . Electromagnetic 25 | . 24 1 . Robot Hit Streak 6 | . 5 6 . Robot Miss Streak 4 | . 4 . 2 Penetration Max . | . . . . Secondary Targets . | . . . . Shots Hit Robots 28 | . 26 2 . Core Hits 19 | . 16 3 . Critical Kills . | . . . . Critical Parts Destroyed . | . . . . Critical Strikes 2 | . 2 . . Burn 2 | . 2 . . Melee Attacks . | . . . . Impact . | . . . . Slashing . | . . . . Piercing . | . . . . Sneak Attacks . | . . . . Combat Hostiles . | . . . . Follow-up Attacks . | . . . . Damage Inflicted 509 | . 360 149 . Guns 371 | . 360 11 . Cannons . | . . . . Explosions 138 | . . 138 . Melee . | . . . . Ramming . | . . . . Kinetic . | . . . . Thermal 124 | . 124 . . Explosive 138 | . . 138 . Electromagnetic 247 | . 236 11 . Impact . | . . . . Slashing . | . . . . Piercing . | . . . . Highest Corruption 4 | . 2 2 4 Average Corruption 2 | . 2 2 2 Corruption Purged . | . . . . Corruption Blocked . | . . . . Effects 17 | . 4 8 5 Message Errors 7 | . 2 4 1 Matter Fused 4 | . 1 2 1 Heat Flow Errors 4 | . . 2 2 Energy Discharges 1 | . 1 . . Misfires 1 | . . . 1 Overload Shots . | . . . . Overflow Damage . | . . . . Projectiles . | . . . . Explosions . | . . . . Melee . | . . . . Knockbacks . | . . . . Impact . | . . . . Kinetic . | . . . . Secondary . | . . . . Self-Inflicted Damage . | . . . . Shots . | . . . . Rammed . | . . . . Targets Rammed . | . . . . Kicked . | . . . . Crushed . | . . . . Highest Temperature 234 | . 177 234 226 Average Temperature 61 | . 47 87 103 Received Heat Transfer 51 | . 51 . . Siege Activations . | . . . . Robots Corrupted . | . . . . Combat Hostiles . | . . . . Parts Fried . | . . . . Impact Corruptions . | . . . . Robots Melted . | . . . . Combat Hostiles . | . . . . Parts Melted 1 | . 1 . . Heat Transferred 518 | . 518 . . Parts Sabotaged . | . . . . Parts Stolen . | . . . . Parts Stripped . | . . . . Power Chain Reactions . | . . . . Missiles Intercepted . | . . . . Alert | -11 -10 -10 -10 ------- Run | Scr Mat Min Exi Peak Influence 238 | . 238 97 . Initial 9 | . . 9 . Average 71 | . 87 59 . Maximum Alert Level 1 | . 1 . . Low Security (%) 97 | 100 95 100 . Level 1 2 | . 4 . . Level 2 . | . . . . Level 3 . | . . . . Level 4 . | . . . . Level 5 . | . . . . High Security . | . . . . Max Security . | . . . . Squads Dispatched 1 | . 1 . . Investigation . | . . . . Extermination . | . . . . Reinforcement 1 | . 1 . . Assault . | . . . . Garrison . | . . . . Intercept . | . . . . Searches Triggered . | . . . . Construction Impeded . | . . . . Haulers Reinforced . | . . . . Active Scanning Responses . | . . . . Cargo Convoy Interrupts . | . . . . Stealth | -11 -10 -10 -10 --------- Run | Scr Mat Min Exi Distress Signals 1 | . 1 . . Communications Jammed . | . . . . Distress Signals . | . . . . Times Spotted 22 | . 15 3 4 Peak Tracking Total 11 | . 3 3 11 Tactical Retreats 4 | . 3 . 1 Traps | -11 -10 -10 -10 ------- Run | Scr Mat Min Exi Traps Triggered 1 | . 1 . . Indirectly . | . . . . Trap Hack Attempts . | . . . . Triggered . | . . . . Disarmed . | . . . . Reprogrammed . | . . . . Reused . | . . . . Traps Extracted . | . . . . Installed . | . . . . Triggered . | . . . . Machines | -11 -10 -10 -10 ---------- Run | Scr Mat Min Exi Machines Disabled 2 | . 2 . . Max in Single Turn 1 | . 1 . . Machines Sabotaged . | . . . . Garrisons Compromised . | . . . . Overloaded Fab Kills . | . . . . Hacking | -11 -10 -10 -10 --------- Run | Scr Mat Min Exi Machines Accessed 9 | . 6 3 . Terminals 6 | . 5 1 . Fabricators . | . . . . Repair Stations . | . . . . Recycling Units 1 | . 1 . . Scanalyzers . | . . . . Garrison Access . | . . . . Total Hacks 21 | . 17 4 . Successful 13 | . 9 4 . Failed 8 | . 8 . . Catastrophic 1 | . 1 . . Database Lockouts . | . . . . Manual 15 | . 13 2 . Terminals 17 | . 15 2 . Fabricators . | . . . . Repair Stations . | . . . . Recycling Units 2 | . 2 . . Scanalyzers . | . . . . Garrison Access . | . . . . Terminal Hacks 8 | . 4 4 . Part Schematic 2 | . 1 1 . Prototype ID Bank 1 | . 1 . . Open Door 2 | . . 2 . Terminal Index 1 | . 1 . . Alert Level 1 | . . 1 . Locate Traps 1 | . 1 . . Fabricator Hacks . | . . . . Repair Station Hacks . | . . . . Recycling Unit Hacks 1 | . 1 . . Report Inventory 1 | . 1 . . Scanalyzer . | . . . . Garrison Access Hacks . | . . . . Unauthorized Hacks 4 | . 4 . . Terminals 4 | . 4 . . Botnet 4 | . 4 . . Fabricators . | . . . . Repair Stations . | . . . . Recycling Units . | . . . . Scanalyzers . | . . . . Garrison Access . | . . . . Data Cores Recovered 1 | . 1 . . Used 1 | . 1 . . Hacking Detections 7 | . 6 1 . Full Trace Events . | . . . . Feedback Events . | . . . . Feedback Blocked . | . . . . Robot Schematics Acquired . | . . . . Robots Built . | . . . . Authchips . | . . . . Time . | . . . . Total Robot Build Rating . | . . . . Part Schematics Acquired 2 | . 1 1 . Parts Built . | . . . . Authchips . | . . . . Time . | . . . . Total Part Build Rating . | . . . . Parts Repaired . | . . . . Time . | . . . . Parts Recycled . | . . . . Recycled Matter . | . . . . Retrieved Matter . | . . . . Retrieved Components . | . . . . Parts Scanalyzed . | . . . . Part Schematics Acquired . | . . . . Parts Damaged . | . . . . Bothacking | -11 -10 -10 -10 ------------ Run | Scr Mat Min Exi Used RIF Installer . | . . . . Robots Hacked . | . . . . Non-combat . | . . . . Combat . | . . . . Robot Hacks Applied . | . . . . Relay Couplers Released . | . . . . Fabnet Peak Effective % . | . . . . Robots Rewired . | . . . . Allies Hacked . | . . . . Hacks Repelled . | . . . . Allies | -11 -10 -10 -10 -------- Run | Scr Mat Min Exi Total Allies 2 | . . 2 . Largest Group 2 | . . 2 2 Highest-Rated Group 42 | . . 42 42 Highest-Rated Ally 31 | . . 31 31 Total Orders . | . . . . Ally Attacks . | . . . . Total Damage . | . . . . Kills . | . . . . Allies Corrupted . | . . . . Allies Melted . | . . . . Intel | -11 -10 -10 -10 ------- Run | Scr Mat Min Exi Robot Analysis Total . | . . . . Derelict Logs Recovered 1 | . . 1 . Drone Launches . | . . . . Drone Recoveries . | . . . . Exploration | -11 -10 -10 -10 ------------- Run | Scr Mat Min Exi Turns Passed 1896 | 72 830 634 360 Spaces Moved 1722 | 60 700 602 360 Core 4 | 4 . . . Treads . | . . . . Legs . | . . . . Wheels 1718 | 56 700 602 360 Hover . | . . . . Flight . | . . . . Fastest Speed 50 | 50 100 100 100 Average Speed 99 | 96 100 100 100 Slowest Speed 100 | 100 100 100 100 Overloaded Moves . | . . . . Propulsion Burnouts . | . . . . Robots Hopped . | . . . . Cave-ins Triggered . | . . . . Exploration Rate (%) 63 | 4 76 99 76 Regions Visited 3 Branch Regions 2 Pre-discovered Areas . | . . . . Known Exits Taken 2 | . 1 1 . Unknown Exits Taken 1 | 1 . . . Scrap Searched 1 | . . 1 . Spaces Dug . | . . . . Terrain Destroyed 6 | . . 6 . Melee . | . . . . Projectile . | . . . . AOE 6 | . . 6 . Terrain Rammed . | . . . . Walls Destroyed . | . . . . Machines Disabled . | . . . . Actions | -11 -10 -10 -10 --------- Run | Scr Mat Min Exi Total 1848 | 71 785 632 360 Wait 54 | . 39 15 . Move 1719 | 59 699 601 360 Hop . | . . . . Pick Up 19 | 6 11 2 . Fast Attach 9 | 6 1 2 . Attach 4 | . 1 3 . Detach 5 | . 1 4 . Swap 4 | . 2 2 . Drop 9 | . 7 2 . Fire 25 | . 24 1 . Melee . | . . . . Ram . | . . . . Kick . | . . . . Crush . | . . . . Escape Stasis . | . . . . Rewire . | . . . . Trap . | . . . . Miscellaneous . | . . . . Route ------- -11/Scrapyard -10/Materials (discovered 3 exits: *Mat x2 / *Min) -10/Mines (discovered 3 exits: *Mat x2 / *Exi) -10/Exiles History --------- Turn | Location | Event 8 | -11/Scrapyard | Discovered new exit (range 16) 73 | -11/Scrapyard | Entered Materials 312 | -10/Materials | Build established: Mutant 508 | -10/Materials | Discovered new exit (range 4) 553 | -10/Materials | Identified exit to Materials 790 | -10/Materials | Discovered exit to Materials (range 13) 836 | -10/Materials | Discovered new exit (range 7) 841 | -10/Materials | Identified exit to Mines 903 | -10/Materials | Entered Mines 938 | -10/Mines | Learned location of 1 exit from Materials 942 | -10/Mines | Discovered exit to Materials (range 8) 993 | -10/Mines | Deemed a non-threat by the Exiles lab entrance 994 | -10/Mines | Discovered new exit (range 5) 997 | -10/Mines | Identified exit to Exiles 1149 | -10/Mines | Discovered exit to Materials (range 10) 1166 | -10/Mines | Met a Derelict who couldn't figure out how to use a Trap Extractor 1297 | -10/Mines | Found the Drone Emporium 1310 | -10/Mines | Found Prototype Device 1537 | -10/Mines | Entered Exiles 1537 | -10/Exiles | Accompanied by 2 allies 1561 | -10/Exiles | Met 8R-AWN 1567 | -10/Exiles | Led the pair of lost Derelicts to a safe place 1604 | -10/Exiles | Met EX-HEX 1648 | -10/Exiles | Met EX-BIN 1729 | -10/Exiles | Met EX-DEC 1792 | -10/Exiles | Visited The Gauntlet 1890 | -10/Exiles | Attacked by the Exiles 1896 | -10/Exiles | Core integrity fell below 50% 1897 | -10/Exiles | Core integrity fell below 20% 1897 | -10/Exiles | Destroyed by DAS Turret with DAS Cannon Last Messages --------------- Now, I'll admit there could be side effects, but if you're willing to participate in the trials you can have one of our prototypes. How's that for a sweet deal? 01650_ EX-BIN: "Please do it. The faster we get more data and tweak this thing to perfection, the faster I can get back to my spacelab designs." 01680_ Connecting with EX-Vault Access... 01689_ KHQJ%P/SMO|G3AZUMXTWXDK1INF>MSSFPHQ#/ EX-DEC: Ah I see we have a visitor. One wrong move in here and I'll invert your atomic chain! 01731_ EX-DEC: "Oops, I hope HEX didn't hear that..." 01743_ System corrupted: Heat flow error (+246). 01764_ System corrupted: Heat flow error (+175). 01890_ System corrupted: FCS attempts to trigger Hpw. Shotgun. 01890_ System corrupted: Hpw. Shotgun misfires. 01890_ EXILES: Hostile robot within lab perimeter. Defensive protocols time, folks! 01892_ EX-DEC: "Let's see what this bad boy can do..." 01892_ EX-DEC deploys DAS Turret. 01893_ Med. Laser destroyed. 01895_ Knocked back. Map ----- +----------------------------------------------------+ | ?????????????????????????????????#" ## #?? | | ?????????????????????????????????#""""""?# #?? | | ?????????????????????????????????##"###??# #?? | | ?????????????????????????????????????????# #?? | | ?????????????????????????????????????????# #?? | | ????????????????????????????????????????## ### | | ????????????????????????????????????????#" | | ????????????????????????????????????????#" | | ????????????????????????????????????????#" | | ????????????????????????????????????????#" | | ?????????????????????????########???????#" | | ?????????????????????????# """#???????#" | | ?????????????????????????#"" """#???????## | | ?????????????????????????#"" #????????# | | ?????????????????????????#"" #????????#" | | ?????????????????????????#"" "#????????#" | | ?????????????????????????# ""#????????#" "" | | ?????????????????????????#"" ""#???????##" ### | | ???????????? ??????????### ###??????##"" #?? | | ???????????? #####????### ###?######"" #?? | | ???????????? """#####X# #"###""""""" ##? | | ??????????? """""" " "" ## | | ???????????# "" """ " # | | ????????????# " " | | ??????????????# | | ??????????????### @ | | ????????????????## | | ?????????????????## % | | ??????????????????##" % | | ???????????????????#""" % """""" | | ??????????????????##" ######""" | | ??????????????????#"" c ""##????#####"" | | ??????????????????#""" """##?????????##" | | ??????????????????""" """##???????????#" | | ??????????????????""" ""#????????????#" | | ?????????????????#"" t ###?####??????"" | | ?????????????????#""" ## ####"?? | | ??????????????????"" """" | | ??????????????????#"" | | ??????????????????#"""" | | ???????????????????# | | ???????????????????#" " "" | | ???????????????????#"""" ""## ##""" | | ???????????????????#"" ""###?? #???# | | ???????????????????#" """"##?????#???? | | ???????????????????#""" """#??????????? | | ????????????????????# ""##??????????? | | ????????????????????#"" """##???????????? | | ????????????????????##""" ##????????????? | | ?????????????????????##"""" ##?????????????? | +----------------------------------------------------+ Best States ------------- Heat Dissipation 25 Energy Generation 14 Energy Capacity 250 Matter Stores 300 Matter Capacity 300 Sight Range 16 Terrain Scan Density 10 ECM Strength 1 Evasion (%) 40 Item Schematics ----------------- Grenade Launcher | -10/Materials | Hacked Lrg. Storage Unit | -10/Mines | Hacked Robot Schematics ------------------ None Fabricated ------------ Nothing Alien Tech Used ----------------- None Achievements -------------- None Challenges ------------ None Game ------ Seed MicrowarpMachineLog Manual? 0 Play Time 00:29:51 Cumulative 42.6 hours Start 2022.10.13 @ 17:57:00 End 2022.10.13 @ 18:29:51 Sessions 1 Manual Loads 0 Difficulty Rogue Special Mode None Game No. 38 Rogue 38 Adventurer 0 Explorer 0 Win Type - Total 0 Types 0/0/0/0/0/0/0/0/0 Lore% 29 Gallery% 36 Achievement% 30 Wizard Run 0 Options --------- ASCII 0 Keyboard 1 Movement Numpad Keybinds 0 Fullscreen 2 Font 18/SmallcapsGlow Map View 76x50 Tactical HUD 1 Map Filters NONE Filters NONE Steam 1 RUN: ef75eb47-cdcd-4094-be99-58060c47fc45